fUSD/lending_fUSD_20260630
["ID","MTS","AMOUNT","RATE_DAILY","PERIOD"]
[426702917,1782751846000,-160.0,0.00033,120]
[426702919,1782751846000,-160.0,0.00033,120]
[426702915,1782751846000,-2000.0,0.00033,120]
[426702921,1782751846000,-151.83365069,0.00033033,2]
[426702923,1782751846000,-500.0,0.00033042,9]
[426702940,1782751846000,-166.66,0.00033185,2]
[426702933,1782751846000,-5482.49553364,0.00033107,2]
[426702929,1782751846000,-1594.64,0.000331,30]
[426702925,1782751846000,-2000.0,0.00033095,7]
[426702936,1782751846000,-30591.62033188,0.0003311,2]
[426702877,1782751846000,-500.0,0.00033,20]
[426702909,1782751846000,-500.0,0.00033,20]
[426702873,1782751846000,-500.0,0.00033,20]
[426702850,1782751846000,-500.0,0.00033,20]
[426702890,1782751846000,-500.0,0.00033,20]
[426702931,1782751846000,-1853.01,0.000331,30]
[426702815,1782751846000,-500.0,0.00033,20]
[426702817,1782751846000,-500.0,0.00033,20]
[426702821,1782751846000,-500.0,0.00033,20]
[426702826,1782751846000,-500.0,0.00033,20]
[426702837,1782751846000,-500.0,0.00033,20]
[426702839,1782751846000,-500.0,0.00033,20]
[426702829,1782751846000,-500.0,0.00033,20]
[426702819,1782751846000,-500.0,0.00033,20]
[426702823,1782751846000,-500.0,0.00033,20]
[426702841,1782751846000,-500.0,0.00033,20]
[426702833,1782751846000,-500.0,0.00033,20]
[426702875,1782751846000,-500.0,0.00033,20]
[426702831,1782751846000,-500.0,0.00033,20]
[426702848,1782751846000,-500.0,0.00033,20]
[426702854,1782751846000,-500.0,0.00033,20]
[426702852,1782751846000,-500.0,0.00033,20]
[426702846,1782751846000,-500.0,0.00033,20]
[426702861,1782751846000,-500.0,0.00033,20]
[426702859,1782751846000,-500.0,0.00033,20]
[426702866,1782751846000,-500.0,0.00033,20]
[426702865,1782751846000,-440.05,0.00033,20]
[426702856,1782751846000,-500.0,0.00033,20]
[426702863,1782751846000,-500.0,0.00033,20]
[426702869,1782751846000,-500.0,0.00033,20]
[426702871,1782751846000,-500.0,0.00033,20]
[426702844,1782751846000,-500.0,0.00033,20]
[426702938,1782751846000,-371.10278108,0.00033164,7]
[426702835,1782751846000,-500.0,0.00033,20]
[426702942,1782751846000,-154.6391,0.0003327,2]
[426702997,1782751846000,-792.0,0.00033768,30]
[426703007,1782751846000,-2183.99,0.00033769,7]
[426703009,1782751846000,-2184.2268495,0.00033769,7]
[426703013,1782751846000,-809.62,0.00033769,120]
[426703011,1782751846000,-809.62,0.00033769,120]
[426703021,1782751846000,-809.69209554,0.00033769,120]
[426703019,1782751846000,-809.62,0.00033769,120]
[426703023,1782751846000,-1211.21,0.00033769,120]
[426703025,1782751846000,-1211.21,0.00033769,120]
[426703038,1782751846000,-869.61,0.00033769,120]
[426703029,1782751846000,-1211.21,0.00033769,120]
[426703034,1782751846000,-1211.27584748,0.00033769,120]
[426703017,1782751846000,-809.62,0.00033769,120]
[426703027,1782751846000,-1211.21,0.00033769,120]
[426703031,1782751846000,-1211.21,0.00033769,120]
[426703042,1782751846000,-869.61,0.00033769,120]
[426703036,1782751846000,-869.61,0.00033769,120]
[426703040,1782751846000,-869.61,0.00033769,120]
[426703046,1782751846000,-869.74065149,0.00033769,120]
[426703048,1782751846000,-733.82,0.00033769,120]
[426703051,1782751846000,-733.82,0.00033769,120]
[426703059,1782751846000,-1000.0,0.00033773,2]
[426703058,1782751846000,-475.0,0.00033769,30]
[426703057,1782751846000,-733.87897703,0.00033769,120]
[426703053,1782751846000,-733.82,0.00033769,120]
[426703055,1782751846000,-733.82,0.00033769,120]
[426703044,1782751846000,-869.61,0.00033769,120]
[426703015,1782751846000,-809.62,0.00033769,120]
[426703056,1782751846000,-733.82,0.00033769,120]
[426703005,1782751846000,-2183.99,0.00033769,7]
[426703002,1782751846000,-2183.99,0.00033769,7]
[426702946,1782751846000,-408.37682636,0.00033455,2]
[426702957,1782751846000,-663.25058118,0.00033595,2]
[426702951,1782751846000,-215.39,0.00033547,120]
[426702961,1782751846000,-1806.35,0.00033657,2]
[426702953,1782751846000,-8022.18068208,0.00033569,28]
[426702955,1782751846000,-1806.35,0.0003359,2]
[426702948,1782751846000,-800.0,0.000335,5]
[426702959,1782751846000,-151.83365069,0.0003363,2]
[426702965,1782751846000,-500.0,0.00033704,10]
[426702968,1782751846000,-2183.99,0.00033731,7]
[426702963,1782751846000,-65502.75413252,0.0003366,2]
[426702972,1782751846000,-1211.21,0.00033731,120]
[426702944,1782751846000,-151.83365069,0.00033331,2]
[426702974,1782751846000,-869.61,0.00033731,120]
[426702970,1782751846000,-809.62,0.00033731,120]
[426703001,1782751846000,-2183.99,0.00033769,7]
[426702991,1782751846000,-684.0,0.00033768,30]
[426702995,1782751846000,-221.0,0.00033768,30]
[426702982,1782751846000,-471.091474,0.00033735,7]
[426702993,1782751846000,-192.0,0.00033768,30]
[426702987,1782751846000,-1000.0,0.00033764,2]
[426702978,1782751846000,-416.5023,0.00033735,7]
[426702989,1782751846000,-1883.96,0.00033764,2]
[426702976,1782751846000,-733.82,0.00033731,120]
[426702980,1782751846000,-390.956389,0.00033735,7]
[426702984,1782751846000,-1000.0,0.00033764,2]
[426702999,1782751846000,-2183.99,0.00033769,7]
[426703155,1782751847000,-730.12015411,0.00033774,2]
[426703100,1782751847000,-300.0,0.00033774,2]
[426703121,1782751847000,-607.84242655,0.00033774,2]
[426703119,1782751847000,-300.0,0.00033774,2]
[426703145,1782751847000,-300.0,0.00033774,2]
[426703147,1782751847000,-300.0,0.00033774,2]
[426703149,1782751847000,-536.77715252,0.00033774,2]
[426703151,1782751847000,-300.0,0.00033774,2]
[426703140,1782751847000,-300.0,0.00033774,2]
[426703143,1782751847000,-300.0,0.00033774,2]
[426703176,1782751847000,-300.0,0.00033774,2]
[426703172,1782751847000,-300.0,0.00033774,2]
[426703161,1782751847000,-300.0,0.00033774,2]
[426703159,1782751847000,-300.0,0.00033774,2]
[426703170,1782751847000,-300.0,0.00033774,2]
[426703117,1782751847000,-300.0,0.00033774,2]
[426703165,1782751847000,-302.16203863,0.00033774,2]
[426703153,1782751847000,-300.0,0.00033774,2]
[426703163,1782751847000,-300.0,0.00033774,2]
[426703168,1782751847000,-300.0,0.00033774,2]
[426703174,1782751847000,-300.0,0.00033774,2]
[426703178,1782751847000,-300.0,0.00033774,2]
[426703157,1782751847000,-300.0,0.00033774,2]
[426703096,1782751847000,-300.0,0.00033774,2]
[426703108,1782751847000,-300.0,0.00033774,2]
[426703112,1782751847000,-300.0,0.00033774,2]
[426703180,1782751847000,-300.0,0.00033774,2]
[426703063,1782751847000,-1000.0,0.00033773,2]
[426703061,1782751847000,-1000.0,0.00033773,2]
[426703065,1782751847000,-1000.0,0.00033773,2]
[426703067,1782751847000,-1825.93,0.00033773,2]
[426703069,1782751847000,-300.0,0.00033774,2]
[426703081,1782751847000,-300.0,0.00033774,2]
[426703079,1782751847000,-300.00000001,0.00033774,2]
[426703085,1782751847000,-1101.0618519,0.00033774,2]
[426703086,1782751847000,-300.0,0.00033774,2]
[426703071,1782751847000,-300.0,0.00033774,2]
[426703082,1782751847000,-300.0,0.00033774,2]
[426703088,1782751847000,-300.0,0.00033774,2]
[426703073,1782751847000,-446.09705538,0.00033774,2]
[426703077,1782751847000,-300.0,0.00033774,2]
[426703091,1782751847000,-300.0,0.00033774,2]
[426703105,1782751847000,-300.0,0.00033774,2]
[426703106,1782751847000,-300.0,0.00033774,2]
[426703102,1782751847000,-300.0,0.00033774,2]
[426703110,1782751847000,-495.28773916,0.00033774,2]
[426703092,1782751847000,-300.0,0.00033774,2]
[426703095,1782751847000,-300.0,0.00033774,2]
[426703114,1782751847000,-300.0,0.00033774,2]
[426703098,1782751847000,-300.0,0.00033774,2]
[426703075,1782751847000,-300.0,0.00033774,2]
[426703198,1782751847000,-576.43989485,0.00033774,2]
[426703186,1782751847000,-300.0,0.00033774,2]
[426703225,1782751847000,-300.0,0.00033774,2]
[426703233,1782751847000,-300.0,0.00033774,2]
[426703230,1782751847000,-300.0,0.00033774,2]
[426703232,1782751847000,-300.0,0.00033774,2]
[426703231,1782751847000,-446.09705538,0.00033774,2]
[426703235,1782751847000,-300.0,0.00033774,2]
[426703244,1782751847000,-300.0,0.00033774,2]
[426703234,1782751847000,-300.00000001,0.00033774,2]
[426703243,1782751847000,-300.0,0.00033774,2]
[426703237,1782751847000,-1101.0618519,0.00033774,2]
[426703236,1782751847000,-300.0,0.00033774,2]
[426703241,1782751847000,-300.0,0.00033774,2]
[426703239,1782751847000,-300.0,0.00033774,2]
[426703240,1782751847000,-300.0,0.00033774,2]
[426703242,1782751847000,-300.0,0.00033774,2]
[426703245,1782751847000,-300.0,0.00033774,2]
[426703247,1782751847000,-300.0,0.00033774,2]
[426703250,1782751847000,-495.28773916,0.00033774,2]
[426703248,1782751847000,-300.0,0.00033774,2]
[426703249,1782751847000,-300.0,0.00033774,2]
[426703246,1782751847000,-300.0,0.00033774,2]
[426703251,1782751847000,-300.0,0.00033774,2]
[426703184,1782751847000,-300.0,0.00033774,2]
[426703223,1782751847000,-300.0,0.00033774,2]
[426703226,1782751847000,-300.0,0.00033774,2]
[426703238,1782751847000,-300.0,0.00033774,2]
[426703227,1782751847000,-300.0,0.00033774,2]
[426703182,1782751847000,-345.7536,0.00033774,2]
[426703229,1782751847000,-300.0,0.00033774,2]
[426703188,1782751847000,-300.0,0.00033774,2]
[426703191,1782751847000,-300.0,0.00033774,2]
[426703197,1782751847000,-300.0,0.00033774,2]
[426703193,1782751847000,-954.30228826,0.00033774,2]
[426703195,1782751847000,-1807.30940739,0.00033774,2]
[426703203,1782751847000,-569.01654071,0.00033774,2]
[426703209,1782751847000,-300.0,0.00033774,2]
[426703201,1782751847000,-311.22255108,0.00033774,2]
[426703206,1782751847000,-300.0,0.00033774,2]
[426703199,1782751847000,-300.0,0.00033774,2]
[426703196,1782751847000,-300.0,0.00033774,2]
[426703200,1782751847000,-300.0,0.00033774,2]
[426703202,1782751847000,-300.0,0.00033774,2]
[426703207,1782751847000,-300.0,0.00033774,2]
[426703204,1782751847000,-300.0,0.00033774,2]
[426703205,1782751847000,-300.0,0.00033774,2]
[426703213,1782751847000,-513.95923093,0.00033774,2]
[426703211,1782751847000,-300.0,0.00033774,2]
[426703215,1782751847000,-300.0,0.00033774,2]
[426703217,1782751847000,-584.66801755,0.00033774,2]
[426703219,1782751847000,-300.0,0.00033774,2]
[426703221,1782751847000,-454.26701287,0.00033774,2]
[426703292,1782751848000,-311.22255108,0.00033774,2]
[426703290,1782751848000,-301.13264824,0.00033774,2]
[426703291,1782751848000,-300.0,0.00033774,2]
[426703289,1782751848000,-576.43989485,0.00033774,2]
[426703285,1782751848000,-954.30228826,0.00033774,2]
[426703287,1782751848000,-300.0,0.00033774,2]
[426703284,1782751848000,-300.0,0.00033774,2]
[426703288,1782751848000,-300.0,0.00033774,2]
[426703293,1782751848000,-300.0,0.00033774,2]
[426703282,1782751848000,-300.0,0.00033774,2]
[426703294,1782751848000,-569.01654071,0.00033774,2]
[426703286,1782751848000,-1807.30940739,0.00033774,2]
[426703297,1782751848000,-300.0,0.00033774,2]
[426703317,1782751848000,-250.0,0.00033786,7]
[426703298,1782751848000,-300.0,0.00033774,2]
[426703304,1782751848000,-300.0,0.00033774,2]
[426703295,1782751848000,-300.0,0.00033774,2]
[426703302,1782751848000,-300.0,0.00033774,2]
[426703299,1782751848000,-300.0,0.00033774,2]
[426703303,1782751848000,-584.66801755,0.00033774,2]
[426703305,1782751848000,-454.26701287,0.00033774,2]
[426703301,1782751848000,-513.95923093,0.00033774,2]
[426703300,1782751848000,-300.0,0.00033774,2]
[426703306,1782751848000,-300.0,0.00033774,2]
[426703315,1782751848000,-1737.06,0.00033778,7]
[426703283,1782751848000,-300.0,0.00033774,2]
[426703296,1782751848000,-300.0,0.00033774,2]
[426703279,1782751848000,-300.0,0.00033774,2]
[426703254,1782751848000,-300.0,0.00033774,2]
[426703273,1782751848000,-300.0,0.00033774,2]
[426703316,1782751848000,-250.0,0.00033786,7]
[426703256,1782751848000,-300.0,0.00033774,2]
[426703255,1782751848000,-300.0,0.00033774,2]
[426703252,1782751848000,-300.0,0.00033774,2]
[426703253,1782751848000,-300.0,0.00033774,2]
[426703262,1782751848000,-300.0,0.00033774,2]
[426703265,1782751848000,-730.12015411,0.00033774,2]
[426703260,1782751848000,-300.50056821,0.00033774,2]
[426703263,1782751848000,-536.77715252,0.00033774,2]
[426703264,1782751848000,-300.0,0.00033774,2]
[426703257,1782751848000,-607.84242655,0.00033774,2]
[426703261,1782751848000,-300.0,0.00033774,2]
[426703259,1782751848000,-300.0,0.00033774,2]
[426703267,1782751848000,-300.0,0.00033774,2]
[426703268,1782751848000,-300.0,0.00033774,2]
[426703266,1782751848000,-300.0,0.00033774,2]
[426703258,1782751848000,-300.0,0.00033774,2]
[426703270,1782751848000,-300.0,0.00033774,2]
[426703280,1782751848000,-345.7536,0.00033774,2]
[426703281,1782751848000,-300.0,0.00033774,2]
[426703269,1782751848000,-303.73373497,0.00033774,2]
[426703271,1782751848000,-302.16203863,0.00033774,2]
[426703272,1782751848000,-300.0,0.00033774,2]
[426703278,1782751848000,-300.0,0.00033774,2]
[426703277,1782751848000,-300.0,0.00033774,2]
[426703275,1782751848000,-300.0,0.00033774,2]
[426703276,1782751848000,-300.0,0.00033774,2]
[426703274,1782751848000,-300.0,0.00033774,2]
[426703318,1782751848000,-250.0,0.00033786,7]
[426703359,1782751848000,-500.0,0.00033973,7]
[426703307,1782751848000,-300.0,0.00033774,2]
[426703347,1782751848000,-500.0,0.00033973,7]
[426703346,1782751848000,-500.0,0.00033973,7]
[426703344,1782751848000,-500.0,0.00033973,7]
[426703350,1782751848000,-500.0,0.00033973,7]
[426703351,1782751848000,-500.0,0.00033973,7]
[426703349,1782751848000,-500.0,0.00033973,7]
[426703355,1782751848000,-500.0,0.00033973,7]
[426703345,1782751848000,-500.0,0.00033973,7]
[426703348,1782751848000,-500.0,0.00033973,7]
[426703353,1782751848000,-500.0,0.00033973,7]
[426703352,1782751848000,-500.0,0.00033973,7]
[426703354,1782751848000,-500.0,0.00033973,7]
[426703357,1782751848000,-500.0,0.00033973,7]
[426703361,1782751848000,-500.0,0.00033973,7]
[426703362,1782751848000,-500.0,0.00033973,7]
[426703363,1782751848000,-500.0,0.00033973,7]
[426703364,1782751848000,-500.0,0.00033973,7]
[426703356,1782751848000,-500.0,0.00033973,7]
[426703367,1782751848000,-500.0,0.00033973,7]
[426703366,1782751848000,-500.0,0.00033973,7]
[426703365,1782751848000,-500.0,0.00033973,7]
[426703358,1782751848000,-500.0,0.00033973,7]
[426703369,1782751848000,-500.0,0.00033973,7]
[426703360,1782751848000,-500.0,0.00033973,7]
[426703368,1782751848000,-500.0,0.00033973,7]
[426703308,1782751848000,-300.0,0.00033774,2]
[426703370,1782751848000,-500.0,0.00033973,7]
[426703341,1782751848000,-500.0,0.00033973,7]
[426703343,1782751848000,-500.0,0.00033973,7]
[426703371,1782751848000,-500.0,0.00033973,7]
[426703337,1782751848000,-500.0,0.00033973,7]
[426703339,1782751848000,-500.0,0.00033973,7]
[426703312,1782751848000,-446.09705538,0.00033774,2]
[426703310,1782751848000,-300.0,0.00033774,2]
[426703313,1782751848000,-300.0,0.00033774,2]
[426703311,1782751848000,-300.0,0.00033774,2]
[426703314,1782751848000,-300.0,0.00033774,2]
[426703320,1782751848000,-150.0,0.00033836,30]
[426703319,1782751848000,-150.0,0.00033836,30]
[426703321,1782751848000,-150.0,0.00033836,30]
[426703324,1782751848000,-444.31,0.00033891,3]
[426703325,1782751848000,-1594.64,0.000339,30]
[426703326,1782751848000,-174.77,0.000339,120]
[426703322,1782751848000,-150.0,0.00033836,30]
[426703309,1782751848000,-300.0,0.00033774,2]
[426703327,1782751848000,-553.0,0.000339,7]
[426703338,1782751848000,-500.0,0.00033973,7]
[426703340,1782751848000,-500.0,0.00033973,7]
[426703342,1782751848000,-500.0,0.00033973,7]
[426703332,1782751848000,-500.0,0.00033973,7]
[426703323,1782751848000,-150.0,0.00033836,30]
[426703331,1782751848000,-500.0,0.00033973,7]
[426703336,1782751848000,-500.0,0.00033973,7]
[426703334,1782751848000,-500.0,0.00033973,7]
[426703333,1782751848000,-500.0,0.00033973,7]
[426703329,1782751848000,-151.83365069,0.00033929,2]
[426703330,1782751848000,-500.0,0.00033973,7]
[426703328,1782751848000,-312.03666516,0.00033922,2]
[426703335,1782751848000,-500.0,0.00033973,7]
[426703408,1782751849000,-500.0,0.00033973,7]
[426703414,1782751849000,-500.0,0.00033973,7]
[426703409,1782751849000,-500.0,0.00033973,7]
[426703418,1782751849000,-500.0,0.00033973,7]
[426703403,1782751849000,-500.0,0.00033973,7]
[426703417,1782751849000,-500.0,0.00033973,7]
[426703407,1782751849000,-500.0,0.00033973,7]
[426703396,1782751849000,-500.0,0.00033973,7]
[426703395,1782751849000,-500.0,0.00033973,7]
[426703399,1782751849000,-500.0,0.00033973,7]
[426703406,1782751849000,-500.0,0.00033973,7]
[426703412,1782751849000,-500.0,0.00033973,7]
[426703419,1782751849000,-500.0,0.00033973,7]
[426703413,1782751849000,-500.0,0.00033973,7]
[426703410,1782751849000,-500.0,0.00033973,7]
[426703415,1782751849000,-500.0,0.00033973,7]
[426703416,1782751849000,-500.0,0.00033973,7]
[426703421,1782751849000,-500.0,0.00033973,7]
[426703424,1782751849000,-1440.34088567,0.00033996,2]
[426703423,1782751849000,-932.37233041,0.00033973,7]
[426703425,1782751849000,-1394.00157538,0.00033996,2]
[426703422,1782751849000,-500.0,0.00033973,7]
[426703426,1782751849000,-1562.78285524,0.00033996,2]
[426703428,1782751849000,-2309.87659494,0.00034,120]
[426703394,1782751849000,-500.0,0.00033973,7]
[426703411,1782751849000,-500.0,0.00033973,7]
[426703400,1782751849000,-500.0,0.00033973,7]
[426703382,1782751849000,-500.0,0.00033973,7]
[426703404,1782751849000,-500.0,0.00033973,7]
[426703378,1782751849000,-500.0,0.00033973,7]
[426703374,1782751849000,-500.0,0.00033973,7]
[426703377,1782751849000,-500.0,0.00033973,7]
[426703375,1782751849000,-500.0,0.00033973,7]
[426703376,1782751849000,-500.0,0.00033973,7]
[426703379,1782751849000,-500.0,0.00033973,7]
[426703372,1782751849000,-500.0,0.00033973,7]
[426703373,1782751849000,-500.0,0.00033973,7]
[426703385,1782751849000,-500.0,0.00033973,7]
[426703381,1782751849000,-500.0,0.00033973,7]
[426703386,1782751849000,-500.0,0.00033973,7]
[426703387,1782751849000,-500.0,0.00033973,7]
[426703383,1782751849000,-500.0,0.00033973,7]
[426703380,1782751849000,-500.0,0.00033973,7]
[426703384,1782751849000,-500.0,0.00033973,7]
[426703388,1782751849000,-500.0,0.00033973,7]
[426703390,1782751849000,-500.0,0.00033973,7]
[426703389,1782751849000,-500.0,0.00033973,7]
[426703392,1782751849000,-500.0,0.00033973,7]
[426703391,1782751849000,-500.0,0.00033973,7]
[426703402,1782751849000,-500.0,0.00033973,7]
[426703397,1782751849000,-500.0,0.00033973,7]
[426703401,1782751849000,-500.0,0.00033973,7]
[426703393,1782751849000,-500.0,0.00033973,7]
[426703398,1782751849000,-500.0,0.00033973,7]
[426703405,1782751849000,-500.0,0.00033973,7]
[426703420,1782751849000,-500.0,0.00033973,7]
[426703431,1782751849000,-1854.72902487,0.00034011,7]
[426703429,1782751849000,-1586.99462694,0.00034007,2]
[426703470,1782751849000,-151.0,0.00034601,7]
[426703469,1782751849000,-151.0,0.00034601,7]
[426703468,1782751849000,-151.0,0.00034601,7]
[426703461,1782751849000,-153.0,0.00034601,7]
[426703467,1782751849000,-151.0,0.00034601,7]
[426703462,1782751849000,-152.41577836,0.00034601,7]
[426703460,1782751849000,-151.0,0.00034594,7]
[426703465,1782751849000,-151.0,0.00034601,7]
[426703463,1782751849000,-151.0,0.00034601,7]
[426703464,1782751849000,-151.0,0.00034601,7]
[426703466,1782751849000,-151.0,0.00034601,7]
[426703473,1782751849000,-151.0,0.00034601,7]
[426703475,1782751849000,-151.0,0.00034601,7]
[426703480,1782751849000,-151.0,0.00034601,7]
[426703474,1782751849000,-151.0,0.00034601,7]
[426703477,1782751849000,-151.0,0.00034601,7]
[426703479,1782751849000,-151.0,0.00034601,7]
[426703476,1782751849000,-151.0,0.00034601,7]
[426703472,1782751849000,-151.0,0.00034601,7]
[426703478,1782751849000,-151.0,0.00034601,7]
[426703481,1782751849000,-151.0,0.00034601,7]
[426703483,1782751849000,-152.0,0.00034601,7]
[426703482,1782751849000,-152.0,0.00034601,7]
[426703484,1782751849000,-152.0,0.00034601,7]
[426703427,1782751849000,-800.0,0.00034,7]
[426703459,1782751849000,-151.0,0.00034594,7]
[426703456,1782751849000,-215.39,0.00034533,120]
[426703471,1782751849000,-151.0,0.00034601,7]
[426703458,1782751849000,-151.0,0.00034594,7]
[426703457,1782751849000,-151.0,0.00034594,7]
[426703433,1782751849000,-1303.5062703,0.00034019,2]
[426703443,1782751849000,-150.0,0.00034267,2]
[426703444,1782751849000,-500.0,0.00034365,11]
[426703445,1782751849000,-785.0,0.00034398,2]
[426703432,1782751849000,-566.4542782,0.00034015,2]
[426703436,1782751849000,-785.0,0.00034028,2]
[426703442,1782751849000,-302.0,0.00034246,14]
[426703434,1782751849000,-793.99279464,0.00034028,2]
[426703435,1782751849000,-785.0,0.00034028,2]
[426703441,1782751849000,-151.83365069,0.00034228,2]
[426703439,1782751849000,-2000.0,0.00034082,7]
[426703438,1782751849000,-10854.2907,0.00034069,28]
[426703430,1782751849000,-214783.36187818,0.00034011,7]
[426703449,1782751849000,-785.0,0.00034398,2]
[426703440,1782751849000,-346.36363636,0.00034148,2]
[426703446,1782751849000,-785.0,0.00034398,2]
[426703448,1782751849000,-785.0,0.00034398,2]
[426703452,1782751849000,-785.0,0.00034398,2]
[426703447,1782751849000,-785.0,0.00034398,2]
[426703451,1782751849000,-785.0,0.00034398,2]
[426703453,1782751849000,-1500.0,0.000344,7]
[426703437,1782751849000,-785.0,0.00034028,2]
[426703450,1782751849000,-785.0,0.00034398,2]
[426703454,1782751849000,-800.0,0.000345,7]
[426703455,1782751849000,-151.83365069,0.00034526,2]
[426703524,1782751850000,-208.90060572,0.000348,120]
[426703514,1782751850000,-193.74760743,0.000348,120]
[426703527,1782751850000,-264.31956019,0.00034807,2]
[426703520,1782751850000,-176.00668385,0.000348,120]
[426703523,1782751850000,-378.35239744,0.000348,120]
[426703512,1782751850000,-200.30438808,0.000348,120]
[426703521,1782751850000,-204.13536785,0.000348,120]
[426703526,1782751850000,-278.83852659,0.000348,120]
[426703517,1782751850000,-182.12426236,0.000348,120]
[426703515,1782751850000,-211.7120455,0.000348,120]
[426703519,1782751850000,-636.78617313,0.000348,120]
[426703518,1782751850000,-212.03024822,0.000348,120]
[426703525,1782751850000,-267.38109539,0.000348,120]
[426703532,1782751850000,-5000.0,0.00034813,2]
[426703529,1782751850000,-5000.0,0.00034813,2]
[426703528,1782751850000,-6896.2026673,0.00034813,2]
[426703531,1782751850000,-5000.0,0.00034813,2]
[426703530,1782751850000,-5000.0,0.00034813,2]
[426703533,1782751850000,-151.83365069,0.00034825,2]
[426703534,1782751850000,-152.0,0.00034825,6]
[426703537,1782751850000,-200.0,0.00034922,7]
[426703536,1782751850000,-1264.30957,0.000349,120]
[426703535,1782751850000,-396.87,0.00034885,3]
[426703538,1782751850000,-200.0,0.00034922,7]
[426703539,1782751850000,-200.0,0.00034922,7]
[426703522,1782751850000,-183.66054815,0.000348,120]
[426703511,1782751850000,-235.39689177,0.000348,120]
[426703485,1782751850000,-152.0,0.00034601,7]
[426703509,1782751850000,-257.63753747,0.000348,120]
[426703487,1782751850000,-297.0,0.00034601,7]
[426703488,1782751850000,-152.0,0.00034601,7]
[426703489,1782751850000,-152.0,0.00034601,7]
[426703486,1782751850000,-152.0,0.00034601,7]
[426703490,1782751850000,-151.0,0.00034601,7]
[426703491,1782751850000,-151.0,0.00034601,7]
[426703492,1782751850000,-151.0,0.00034601,7]
[426703493,1782751850000,-151.0,0.00034601,7]
[426703504,1782751850000,-475.0,0.00034769,30]
[426703498,1782751850000,-172.0,0.00034601,7]
[426703495,1782751850000,-151.0,0.00034601,7]
[426703497,1782751850000,-166.0,0.00034601,7]
[426703503,1782751850000,-792.0,0.00034768,30]
[426703499,1782751850000,-166.0,0.00034601,7]
[426703496,1782751850000,-151.0,0.00034601,7]
[426703500,1782751850000,-684.0,0.00034768,30]
[426703502,1782751850000,-221.0,0.00034768,30]
[426703501,1782751850000,-192.0,0.00034768,30]
[426703494,1782751850000,-151.0,0.00034601,7]
[426703516,1782751850000,-365.47945397,0.000348,120]
[426703541,1782751850000,-1868.0,0.0003497,120]
[426703505,1782751850000,-1500.0,0.00034795,2]
[426703508,1782751850000,-200.0,0.000348,120]
[426703510,1782751850000,-205.06990362,0.000348,120]
[426703507,1782751850000,-327.5996339,0.000348,120]
[426703513,1782751850000,-222.71216992,0.000348,120]
[426703545,1782751850000,-2029.0,0.0003498,120]
[426703506,1782751850000,-208.14482667,0.000348,120]
[426703549,1782751850000,-227.09549037,0.00034989,2]
[426703569,1782751850000,-206.36564284,0.00035015,10]
[426703576,1782751850000,-268.17075154,0.000354,30]